bitfinex/quotes_BTCUSD_20241211
["timestamp","ask_amount","ask_price","bid_price","bid_amount"]
[1733912478397,0.204896,98089.0,98080.0,0.0001716]
[1733912478398,0.12921811,98085.0,98080.0,0.0001716]
[1733912478757,0.226908,98083.0,98081.0,0.01696109]
[1733912478937,0.15221811,98082.0,98081.0,0.01696109]
[1733912479153,0.15221811,98082.0,98080.0,0.0001716]
[1733912479154,0.226913,98081.0,98080.0,0.0001716]
[1733912479267,0.35613111,98081.0,98080.0,0.0001716]
[1733912479469,0.35613111,98081.0,98080.0,0.0011716]
[1733912479725,0.35613111,98081.0,98080.0,0.0001716]
[1733912480317,0.35613022,98081.0,98080.0,0.0001716]
[1733912481025,0.35613022,98081.0,98070.0,0.0001714]
[1733912481026,0.32152295,98081.0,98070.0,0.0001714]
[1733912481237,0.226933,98071.0,98070.0,0.0001714]
[1733912481445,0.35615022,98071.0,98070.0,0.0001714]
[1733912482098,0.3665705,98071.0,98070.0,0.0001714]
[1733912482304,0.35615022,98071.0,98070.0,0.0001714]
[1733912482533,0.36115022,98071.0,98070.0,0.0001714]
[1733912482994,0.36126255,98071.0,98070.0,0.0001714]
[1733912483405,0.36426255,98071.0,98070.0,0.0001714]
[1733912483614,0.35798865,98071.0,98070.0,0.0001714]
[1733912483840,0.37713558,98071.0,98070.0,0.0001714]
[1733912484076,0.38476166,98071.0,98070.0,0.0001714]
[1733912484309,0.95471255,98071.0,98070.0,0.0001714]
[1733912484513,1.38573825,98071.0,98070.0,0.0001714]
[1733912484732,0.05675855,98064.0,98044.0,0.15]
[1733912484951,0.203985,98047.0,98044.0,0.15]
[1733912485152,0.13831751,98046.0,98045.0,0.01703759]
[1733912485356,0.14456268,98046.0,98044.0,0.15]
[1733912485557,0.01623744,98045.0,98042.0,0.15]
[1733912485760,0.11157041,98044.0,98043.0,0.15]
[1733912486037,0.01622897,98044.0,98043.0,0.15]
[1733912486225,0.00624517,98044.0,98043.0,0.36856128]
[1733912486427,0.0099838,98063.0,98056.0,0.44720645]
[1733912486632,0.0099838,98063.0,98062.0,0.49399345]
[1733912486868,0.0099838,98067.0,98066.0,0.29718545]
[1733912487084,0.00011233,98071.0,98068.0,0.15]
[1733912487316,0.00011233,98071.0,98069.0,0.203938]
[1733912487517,0.0062391,98070.0,98068.0,0.15]
[1733912487717,0.00011233,98071.0,98069.0,0.09324145]
[1733912487903,0.00623987,98070.0,98069.0,0.09324145]
[1733912488505,0.00623987,98070.0,98069.0,0.32074145]
[1733912488711,0.00011233,98071.0,98070.0,0.44717645]
[1733912489345,0.00211233,98071.0,98070.0,0.44717645]
[1733912489765,0.00211233,98071.0,98070.0,0.52407645]
[1733912489980,0.00111233,98071.0,98070.0,0.53007645]
[1733912490186,0.00111233,98071.0,98070.0,0.53107645]
[1733912490597,0.00111233,98071.0,98070.0,0.68540169]
[1733912490798,0.00111233,98071.0,98070.0,0.68440169]
[1733912491008,0.00111233,98071.0,98070.0,0.68640169]
[1733912491232,0.00011233,98071.0,98070.0,0.83040169]
[1733912491415,0.00011233,98071.0,98070.0,0.85058001]
[1733912491824,0.00011233,98071.0,98070.0,0.84758001]
[1733912492028,0.00011233,98071.0,98070.0,0.85258001]
[1733912501044,5.527e-05,98071.0,98070.0,0.85258001]
[1733912502383,5.527e-05,98071.0,98070.0,0.74725477]
[1733912502780,5.527e-05,98071.0,98070.0,0.65401332]
[1733912502986,5.527e-05,98071.0,98070.0,0.74725477]
[1733912503404,5.527e-05,98071.0,98070.0,0.65401332]
[1733912503606,5.527e-05,98071.0,98070.0,0.74725477]
[1733912507525,5.527e-05,98071.0,98070.0,0.85258001]
[1733912509122,5.527e-05,98071.0,98070.0,1.00258001]
[1733912509342,5.527e-05,98071.0,98070.0,0.99758001]
[1733912509542,5.527e-05,98071.0,98070.0,1.00658001]
[1733912509740,0.00105527,98071.0,98070.0,1.00658001]
[1733912509931,0.00105527,98071.0,98070.0,1.00458001]
[1733912510330,0.00205527,98071.0,98070.0,1.01158001]
[1733912514420,0.00205527,98071.0,98070.0,0.76833856]
[1733912514572,0.00205527,98071.0,98070.0,0.66301332]
[1733912514771,0.00205527,98071.0,98070.0,0.75625477]
[1733912514994,0.00205527,98071.0,98070.0,0.60625477]
[1733912515197,0.00205527,98071.0,98070.0,0.66301332]
[1733912515406,0.00105527,98071.0,98070.0,0.74725477]
[1733912516193,5.527e-05,98071.0,98070.0,0.74025477]
[1733912516438,0.00105527,98071.0,98070.0,0.70025477]
[1733912516648,0.00205527,98071.0,98070.0,0.70625477]
[1733912516875,0.00205527,98071.0,98070.0,0.61301332]
[1733912517053,0.00105527,98071.0,98070.0,0.70025477]
[1733912517280,0.00105527,98071.0,98070.0,0.47335477]
[1733912517432,0.00105527,98071.0,98070.0,0.47735477]
[1733912519331,0.00105527,98071.0,98070.0,0.38011332]
[1733912519539,0.00105527,98071.0,98070.0,0.47335477]
[1733912519669,5.527e-05,98071.0,98070.0,0.46835477]
[1733912519866,0.00105527,98071.0,98070.0,0.38411332]
[1733912520103,0.00105527,98071.0,98070.0,0.17617832]
[1733912521108,0.00105527,98071.0,98070.0,0.18017832]
[1733912521964,5.527e-05,98071.0,98070.0,0.17117832]
[1733912522171,5.527e-05,98071.0,98070.0,0.17217832]
[1733912522382,5.527e-05,98071.0,98070.0,0.26141977]
[1733912522860,5.527e-05,98071.0,98070.0,0.53701977]
[1733912523333,5.527e-05,98071.0,98070.0,0.53601977]
[1733912524909,5.527e-05,98071.0,98070.0,0.79134501]
[1733912525408,5.527e-05,98071.0,98070.0,0.79034501]
[1733912525815,5.527e-05,98071.0,98070.0,0.79534501]
[1733912526002,5.527e-05,98071.0,98070.0,0.94034501]
[1733912526206,0.00105527,98071.0,98070.0,0.95334501]
[1733912526604,0.00105527,98071.0,98070.0,0.94434501]
[1733912526888,0.00205527,98071.0,98070.0,0.94934501]
[1733912527106,0.00305527,98071.0,98070.0,0.95534501]
[1733912528249,0.00305527,98071.0,98070.0,0.65534501]
[1733912528476,0.00305527,98071.0,98070.0,0.56210356]
[1733912528693,0.00305527,98071.0,98070.0,0.65534501]
[1733912531356,0.00305527,98071.0,98070.0,0.97575213]
[1733912531537,0.00305527,98071.0,98070.0,0.65534501]
[1733912531737,0.00305527,98071.0,98070.0,0.97575078]
[1733912533205,0.00305527,98071.0,98070.0,1.20437043]
[1733912534293,0.00305527,98071.0,98070.0,0.97623466]
[1733912535716,0.00305527,98071.0,98070.0,0.87090942]
[1733912535929,0.00305527,98071.0,98070.0,1.00683006]
[1733912536136,0.00305527,98071.0,98070.0,0.74630942]
[1733912536463,0.00305527,98071.0,98070.0,0.92893006]
[1733912537639,0.00305527,98071.0,98070.0,0.92927243]
[1733912537970,0.00305527,98071.0,98070.0,0.7466201]
[1733912538609,0.00305527,98071.0,98070.0,0.65337865]
[1733912538865,0.00305527,98071.0,98070.0,0.7466201]
[1733912541696,0.00305527,98071.0,98070.0,0.74732213]
[1733912542909,0.00305527,98071.0,98070.0,0.27541977]
[1733912543952,0.00205527,98071.0,98070.0,0.26941977]
[1733912544785,5.527e-05,98071.0,98070.0,0.26041977]
[1733912545768,5.527e-05,98071.0,98070.0,0.26241977]
[1733912546205,5.527e-05,98071.0,98070.0,0.26041977]
[1733912546379,5.527e-05,98071.0,98070.0,0.26641977]
[1733912546380,0.00105527,98071.0,98070.0,0.26641977]
[1733912547031,0.00105527,98071.0,98070.0,0.26941977]
[1733912547674,5.527e-05,98071.0,98070.0,0.26041977]
[1733912547893,5.527e-05,98071.0,98070.0,0.26441977]
[1733912548309,5.527e-05,98071.0,98070.0,0.26041977]
[1733912548521,5.527e-05,98071.0,98070.0,0.26541977]
[1733912548725,5.527e-05,98071.0,98070.0,0.26041977]
[1733912549145,5.527e-05,98071.0,98070.0,0.26541977]
[1733912549542,5.527e-05,98071.0,98070.0,0.26741977]
[1733912549968,5.527e-05,98071.0,98070.0,0.26541977]
[1733912550247,5.527e-05,98071.0,98070.0,0.17417832]
[1733912550421,0.07585527,98071.0,98070.0,0.17417832]
[1733912550623,0.07585527,98071.0,98070.0,0.02417832]
[1733912551061,0.07585527,98071.0,98070.0,0.02217832]
[1733912551265,0.07585527,98071.0,98070.0,0.01717832]
[1733912551699,0.07585527,98071.0,98070.0,0.11441977]
[1733912551902,0.08164438,98071.0,98070.0,0.11441977]
[1733912552536,0.08164438,98071.0,98070.0,0.11741977]
[1733912552880,0.00584438,98071.0,98070.0,0.26741977]
[1733912553084,0.00584438,98071.0,98070.0,0.26441977]
[1733912553459,0.00584438,98071.0,98070.0,0.26541977]
[1733912554137,0.00584438,98071.0,98070.0,0.26041977]
[1733912554342,0.00584438,98071.0,98070.0,0.26241977]
[1733912554549,0.00584438,98071.0,98070.0,0.26041977]
[1733912554747,0.00584372,98071.0,98070.0,0.26041977]
[1733912555060,0.00584372,98071.0,98070.0,0.26241977]
[1733912555263,0.00584372,98071.0,98070.0,0.26041977]
[1733912555482,0.00584372,98071.0,98070.0,0.26441977]
[1733912555690,0.00584372,98071.0,98070.0,0.26241977]
[1733912555892,0.00584372,98071.0,98070.0,0.26041977]
[1733912556098,0.00584372,98071.0,98070.0,0.26241977]
[1733912556303,0.00584372,98071.0,98070.0,0.26341977]
[1733912556529,0.00584372,98071.0,98070.0,0.11341977]
[1733912556730,0.00584372,98071.0,98070.0,0.02017832]
[1733912556946,0.00584372,98071.0,98070.0,0.16917832]
[1733912557152,0.00584372,98071.0,98070.0,0.16717832]
[1733912557366,0.00584372,98071.0,98070.0,0.16817832]
[1733912557583,0.00584372,98071.0,98070.0,0.17017832]
[1733912557795,0.00584372,98071.0,98070.0,0.16817832]
[1733912558002,0.00584418,98071.0,98070.0,0.17017832]
[1733912558207,0.00584418,98071.0,98070.0,0.26341977]
[1733912559425,0.00584418,98071.0,98070.0,0.26241977]
[1733912559632,0.00584418,98071.0,98070.0,0.02017832]
[1733912559842,0.01510577,98071.0,98070.0,0.02017832]
[1733912560075,0.01510577,98071.0,98070.0,0.01917832]
[1733912560360,0.01510577,98071.0,98070.0,0.01717832]
[1733912560546,0.01510577,98071.0,98070.0,0.02017832]
[1733912560754,0.01510577,98071.0,98070.0,0.0011716]
[1733912560963,0.01510577,98071.0,98070.0,0.0001716]
[1733912561168,0.00105527,98071.0,98070.0,0.01446935]
[1733912561342,0.01610418,98071.0,98070.0,0.0001716]
[1733912561525,0.01610418,98071.0,98070.0,0.01447764]
[1733912561768,0.01710418,98071.0,98070.0,0.0001716]
[1733912561970,0.01610418,98071.0,98070.0,0.01447764]
[1733912562168,0.09810418,98071.0,98070.0,0.0001716]
[1733912562369,0.22642942,98071.0,98070.0,0.0001716]
[1733912562594,0.22542942,98071.0,98070.0,0.0001716]
[1733912562846,0.22742942,98071.0,98070.0,0.0001716]
[1733912563360,0.23042942,98071.0,98070.0,0.0001716]
[1733912563551,0.22542942,98071.0,98070.0,0.0001716]
[1733912563955,0.23142942,98071.0,98070.0,0.0001716]
[1733912564305,0.220167,98071.0,98070.0,0.0001716]
[1733912564571,0.22942538,98071.0,98070.0,0.0001716]
[1733912565835,0.23142538,98071.0,98070.0,0.0001716]
[1733912570649,0.23142071,98071.0,98070.0,0.0001716]
[1733912578842,0.14942071,98071.0,98070.0,0.0001716]
[1733912580376,0.13438051,98071.0,98070.0,0.0001716]
[1733912580609,0.14943241,98071.0,98070.0,0.0001716]
[1733912581010,0.15908107,98071.0,98070.0,0.0001716]
[1733912581620,0.14943241,98071.0,98060.0,0.09324145]
[1733912581873,0.203947,98065.0,98060.0,0.09324145]
[1733912582074,0.0150519,98064.0,98060.0,0.09324145]
[1733912582237,0.0150519,98063.0,98061.0,0.01435719]
[1733912582435,0.203947,98065.0,98055.0,0.09324145]
[1733912582633,0.00926358,98062.0,98056.0,0.01436336]
[1733912582927,0.21900731,98061.0,98056.0,0.01436336]
[1733912583130,0.00578973,98060.0,98056.0,0.01436336]
[1733912583301,0.00578973,98060.0,98050.0,0.15]
[1733912583302,0.00926358,98059.0,98050.0,0.15]
[1733912583510,0.203954,98061.0,98057.0,0.01436464]
[1733912583511,0.01505331,98058.0,98057.0,0.01436464]
[1733912583734,0.01505331,98058.0,98050.0,0.15]
[1733912583910,0.01505331,98057.0,98050.0,0.15]
[1733912584115,0.203954,98061.0,98051.0,0.01437205]
[1733912584116,0.01505331,98056.0,98051.0,0.01437205]
[1733912584315,0.203954,98061.0,98051.0,0.01437205]
[1733912584316,0.01505331,98055.0,98051.0,0.01437205]
[1733912584527,0.203963,98057.0,98051.0,0.01437205]
[1733912584528,0.01505331,98054.0,98051.0,0.01437205]
[1733912584743,0.01505331,98053.0,98046.0,0.09324145]
[1733912584940,0.01505331,98052.0,98051.0,0.09324145]
[1733912585132,0.01505331,98052.0,98045.0,0.01003652]
[1733912585375,0.01505331,98051.0,98045.0,0.01003652]
[1733912585498,0.01505331,98050.0,98044.0,0.09324145]
[1733912585702,0.01505268,98049.0,98044.0,0.09324145]
[1733912586136,0.01505268,98048.0,98044.0,0.09324145]
[1733912586344,0.01505268,98047.0,98043.0,0.0751]
[1733912586537,0.00578949,98046.0,98044.0,0.09324145]
[1733912586736,0.00578949,98045.0,98044.0,0.09324145]
[1733912587632,0.00578949,98045.0,98044.0,0.24324145]
[1733912589099,0.00579144,98045.0,98044.0,0.24624145]
[1733912592459,0.203954,98061.0,98044.0,0.24624145]
[1733912592683,0.00579249,98045.0,98044.0,0.24624145]
[1733912592913,0.10532524,98060.0,98044.0,0.24624145]
[1733912593115,0.01506048,98059.0,98044.0,0.24624145]
[1733912593317,0.01506048,98058.0,98044.0,0.24424145]
[1733912593522,0.01506048,98057.0,98044.0,0.24424145]
[1733912593724,0.01506048,98056.0,98044.0,0.24424145]
[1733912593960,0.01506048,98055.0,98044.0,0.24424145]
[1733912594113,0.01506048,98054.0,98050.0,0.15]
[1733912594318,0.01506048,98053.0,98050.0,0.15]
[1733912594546,0.00965415,98063.0,98058.0,0.09324145]
[1733912594707,0.00965415,98069.0,98065.0,0.09324145]
[1733912594898,0.01506014,98068.0,98067.0,0.09324145]
[1733912596384,0.01606014,98068.0,98067.0,0.10761108]
[1733912596602,0.01506014,98068.0,98067.0,0.10761108]
[1733912598930,0.00579236,98068.0,98067.0,0.10761108]
[1733912599732,0.00579236,98068.0,98067.0,0.11776779]
[1733912600378,0.00579236,98068.0,98067.0,0.34906779]
[1733912600533,5.527e-05,98071.0,98070.0,0.24324145]
[1733912600959,0.00584428,98071.0,98070.0,0.25758721]
[1733912601346,5.527e-05,98071.0,98070.0,0.25758721]
[1733912601775,0.00105527,98071.0,98070.0,0.25758721]
[1733912602334,0.00205527,98071.0,98070.0,0.25758721]
[1733912604616,0.0076845,98071.0,98070.0,0.25758721]
[1733912605214,0.0076845,98071.0,98070.0,0.10758721]
[1733912605639,0.0076845,98071.0,98070.0,0.25758721]
[1733912608597,0.00205527,98071.0,98070.0,0.10758721]
[1733912608804,0.00768312,98071.0,98070.0,0.10758721]
[1733912610055,0.00768312,98071.0,98070.0,0.25758721]
[1733912611833,0.00205527,98071.0,98070.0,0.25758721]
[1733912612048,0.00768266,98071.0,98070.0,0.25758721]
[1733912614362,0.00768266,98071.0,98070.0,0.10758721]
[1733912616321,0.00768266,98071.0,98070.0,0.25758721]
[1733912617357,0.00768266,98071.0,98070.0,0.10758721]
[1733912618399,0.0076854,98071.0,98070.0,0.25758721]
[1733912619928,0.0076854,98071.0,98070.0,0.25775881]
[1733912624062,0.0076854,98071.0,98070.0,0.27775881]
[1733912624256,0.01671152,98071.0,98070.0,0.27775881]
[1733912625926,0.01675152,98071.0,98070.0,0.27775881]
[1733912626462,0.01675152,98071.0,98070.0,0.12775881]
[1733912626669,0.01675152,98071.0,98070.0,0.27775881]
[1733912627472,0.01675152,98071.0,98070.0,0.35585881]
[1733912627676,0.0077254,98071.0,98070.0,0.40155881]
[1733912627881,0.0077254,98071.0,98070.0,0.55155881]
[1733912627882,0.00209527,98071.0,98070.0,0.55155881]
[1733912628573,0.00109527,98071.0,98070.0,0.55155881]
[1733912629502,9.527e-05,98071.0,98070.0,0.55155881]
[1733912629755,0.00109527,98071.0,98070.0,0.55155881]
[1733912630308,0.00109527,98071.0,98070.0,0.55955881]
[1733912630491,0.00209527,98071.0,98070.0,0.55955881]
[1733912630694,0.00109527,98071.0,98070.0,0.55955881]
[1733912630908,0.00109527,98071.0,98070.0,0.56355881]
[1733912636249,0.00109527,98071.0,98070.0,0.13975881]
[1733912636451,0.00109527,98071.0,98070.0,0.28975881]
[1733912639361,0.00109527,98071.0,98070.0,0.13975881]
[1733912639570,0.00109527,98071.0,98070.0,0.28975881]
[1733912639777,0.00672895,98071.0,98070.0,0.28975881]
[1733912640408,0.00672895,98071.0,98070.0,0.13975881]
[1733912641055,0.00672878,98071.0,98070.0,0.13975881]
[1733912641703,0.00672878,98071.0,98070.0,0.12541305]
[1733912642116,0.00672878,98071.0,98070.0,0.1377738]
[1733912642296,0.00672878,98071.0,98070.0,0.1337738]
[1733912642562,0.00572878,98071.0,98070.0,0.1257738]
[1733912643196,0.00572878,98071.0,98070.0,0.3568738]
[1733912643617,0.00572848,98071.0,98070.0,0.3568738]
[1733912643868,9.527e-05,98071.0,98070.0,0.3568738]
[1733912644454,9.527e-05,98071.0,98070.0,0.5638088]
[1733912645798,9.527e-05,98071.0,98070.0,0.5618088]
[1733912646053,9.527e-05,98071.0,98070.0,0.3588738]
[1733912646338,0.00572872,98071.0,98070.0,0.3568738]
[1733912647156,0.00572872,98071.0,98070.0,0.5618088]
[1733912647387,0.00572872,98071.0,98070.0,0.5608088]
[1733912647388,9.527e-05,98071.0,98070.0,0.5608088]
[1733912647591,0.00572872,98071.0,98070.0,0.5608088]
[1733912647794,0.00572872,98071.0,98070.0,0.5618088]
[1733912648506,0.00572893,98071.0,98070.0,0.5618088]
[1733912648949,0.00572893,98071.0,98070.0,0.5608088]
[1733912649263,0.00572893,98071.0,98070.0,0.3578738]
[1733912649748,0.00572893,98071.0,98070.0,0.3588738]
[1733912649986,0.00572893,98071.0,98070.0,0.2777738]
[1733912650751,0.00572893,98071.0,98070.0,0.1277738]
[1733912650996,0.00572893,98071.0,98070.0,0.2777738]
[1733912652481,9.527e-05,98071.0,98070.0,0.3593738]
[1733912653959,9.527e-05,98071.0,98070.0,0.5591738]
[1733912654678,9.527e-05,98071.0,98070.0,0.5581738]
[1733912655175,9.527e-05,98071.0,98070.0,0.5571738]
[1733912655419,9.527e-05,98071.0,98070.0,0.5631738]
[1733912655806,0.00109527,98071.0,98070.0,0.5691738]
[1733912656672,9.527e-05,98071.0,98070.0,0.5571738]
[1733912656887,0.00109527,98071.0,98070.0,0.5631738]
[1733912657407,0.00109527,98071.0,98070.0,0.65743904]
[1733912657614,0.00109527,98071.0,98070.0,0.5661738]
[1733912657830,0.00109527,98071.0,98070.0,0.70010197]
[1733912658042,9.527e-05,98071.0,98070.0,0.69410197]
[1733912658491,0.00109527,98071.0,98070.0,0.70210197]
[1733912658731,0.00109527,98071.0,98070.0,0.69410197]
[1733912658931,0.00209527,98071.0,98070.0,0.70110197]
[1733912659148,0.00109527,98071.0,98070.0,0.69710197]
[1733912659368,9.527e-05,98071.0,98070.0,0.69710197]
[1733912659624,0.00109527,98071.0,98070.0,0.70510197]
[1733912659804,0.00109527,98071.0,98070.0,0.69410197]
[1733912660017,0.00109527,98071.0,98070.0,0.70410197]
[1733912660230,0.00209527,98071.0,98070.0,0.70410197]
[1733912660671,0.00209527,98071.0,98070.0,0.70110197]
[1733912660873,0.00209527,98071.0,98070.0,0.70410197]
[1733912661358,9.527e-05,98071.0,98070.0,0.69710197]
[1733912661582,0.00109527,98071.0,98070.0,0.70510197]
[1733912662015,9.527e-05,98071.0,98070.0,0.69710197]
[1733912662254,0.00109527,98071.0,98070.0,0.5641738]
[1733912662786,0.00109527,98071.0,98070.0,0.41813235]
[1733912662787,9.527e-05,98071.0,98070.0,0.41813235]
[1733912662937,0.00109527,98071.0,98070.0,0.5183738]
[1733912663166,0.00109527,98071.0,98070.0,0.5103738]
[1733912663570,0.00109527,98071.0,98070.0,0.5073738]
[1733912663831,0.00109527,98071.0,98070.0,0.5103738]
[1733912664466,0.00209527,98071.0,98070.0,0.5173738]
[1733912664677,0.00209527,98071.0,98070.0,0.608671]
[1733912664890,9.527e-05,98071.0,98070.0,0.5103738]
[1733912665100,0.00109527,98071.0,98070.0,0.5163738]
[1733912665349,0.00109527,98071.0,98070.0,0.601671]
[1733912665560,0.00109527,98071.0,98070.0,0.598671]
[1733912665782,0.00209527,98071.0,98070.0,0.608671]
[1733912666201,0.00209527,98071.0,98070.0,0.605671]
[1733912666624,0.00209527,98071.0,98070.0,0.608671]
[1733912666836,0.00209527,98071.0,98070.0,0.60867831]
[1733912671177,0.00209527,98071.0,98070.0,0.60874388]
[1733912672257,0.00209527,98071.0,98070.0,0.5173738]
[1733912681345,0.00209527,98071.0,98070.0,0.65444981]
[1733912682872,0.00209527,98071.0,98070.0,0.5173738]
[1733912683306,0.00209527,98071.0,98070.0,0.65444981]
[1733912684494,0.00209527,98071.0,98070.0,0.6545072]
[1733912686192,0.00209527,98071.0,98070.0,0.5173738]
[1733912686622,0.00209527,98071.0,98070.0,0.65450934]
[1733912687126,0.00209527,98071.0,98070.0,0.95733458]
[1733912687334,8.58e-05,98080.0,98079.0,0.72025845]
[1733912687580,0.00018699,98080.0,98079.0,0.82558369]
[1733912687787,0.00018699,98080.0,98079.0,0.83793634]
[1733912687993,0.00018699,98080.0,98079.0,1.17526082]
[1733912688826,0.00018699,98080.0,98079.0,1.20508526]
[1733912689034,0.00118699,98080.0,98079.0,1.18326082]
[1733912689626,0.00118699,98080.0,98079.0,1.18626082]
[1733912689827,0.00118699,98080.0,98079.0,0.84893634]
[1733912691394,0.00118699,98080.0,98079.0,0.85918224]
[1733912697913,0.00118699,98080.0,98079.0,1.00918224]
[1733912698823,0.00118699,98080.0,98079.0,1.34598018]
[1733912699074,0.00118699,98080.0,98079.0,1.34298018]
[1733912699492,0.00218699,98080.0,98079.0,1.19998018]
[1733912699724,0.00118699,98080.0,98079.0,1.19198018]
[1733912699939,0.00118699,98080.0,98079.0,1.20098018]
[1733912700148,0.00118699,98080.0,98079.0,1.19198018]
[1733912700560,0.00118699,98080.0,98079.0,1.20098018]
[1733912700776,0.00118699,98080.0,98079.0,1.18498018]
[1733912700777,0.00018699,98080.0,98079.0,1.18498018]
[1733912701196,0.00018699,98080.0,98079.0,1.19398018]
[1733912701409,0.00018699,98080.0,98079.0,1.42208144]
[1733912701614,0.00018699,98080.0,98079.0,1.19998018]
[1733912702030,0.00018699,98080.0,98079.0,1.19398018]
[1733912702451,0.00018699,98080.0,98079.0,1.19798018]
[1733912702668,0.00018699,98080.0,98079.0,0.95291349]
[1733912702944,0.00018699,98080.0,98079.0,1.15102273]
[1733912703145,0.00018699,98080.0,98079.0,1.14202273]
[1733912703588,0.00018699,98080.0,98079.0,1.15102273]
[1733912703831,0.00018699,98080.0,98079.0,1.13802273]
[1733912704016,0.00018699,98080.0,98079.0,1.05978128]
[1733912704225,0.00018699,98080.0,98079.0,1.00202273]
[1733912704442,0.00018699,98080.0,98079.0,0.81955494]
[1733912704653,0.00018699,98080.0,98079.0,0.482757]
[1733912705947,0.00018699,98080.0,98079.0,0.632757]
[1733912706366,0.00018699,98080.0,98079.0,0.473757]
[1733912706813,0.00018699,98080.0,98079.0,0.477757]
[1733912707028,0.00018699,98080.0,98079.0,0.472757]
[1733912707246,0.00018699,98080.0,98079.0,0.474757]
[1733912707426,0.00018699,98080.0,98079.0,0.324757]
[1733912707684,0.00018699,98080.0,98079.0,0.474757]
[1733912707900,0.00018699,98080.0,98079.0,0.472757]
[1733912708720,0.00018699,98080.0,98079.0,0.474757]
[1733912710956,0.00018699,98080.0,98079.0,0.703357]
[1733912711389,0.00018699,98080.0,98079.0,0.79460318]
[1733912711603,0.00018699,98080.0,98079.0,0.703357]
[1733912712027,0.00018699,98080.0,98079.0,1.28236021]
[1733912712241,0.00018699,98080.0,98079.0,1.14547816]
[1733912712671,0.00018699,98080.0,98079.0,1.32798756]
[1733912712898,0.00018699,98080.0,98079.0,1.14547816]
[1733912713991,0.00018699,98080.0,98079.0,1.28233262]
[1733912716653,0.00018699,98080.0,98079.0,1.14547816]
[1733912717561,0.00018699,98080.0,98079.0,1.32798756]
[1733912719229,0.00018699,98080.0,98079.0,0.80868224]
[1733912719437,0.00018699,98080.0,98079.0,1.32774452]
[1733912719867,0.00018699,98080.0,98079.0,1.1453424]
[1733912728178,0.00018699,98080.0,98079.0,1.14573059]
[1733912734553,0.00018699,98080.0,98079.0,0.96180535]
[1733912734798,0.00018699,98080.0,98079.0,0.38251555]
[1733912735010,0.00018699,98080.0,98079.0,0.474757]
[1733912738191,0.00018699,98080.0,98079.0,0.324757]
[1733912739694,0.0058214,98080.0,98079.0,0.324757]
[1733912740512,0.0058214,98080.0,98079.0,0.01835265]
[1733912740724,0.0867214,98080.0,98079.0,0.01835265]
[1733912741163,0.0867214,98080.0,98079.0,0.006]
[1733912741365,0.0867214,98080.0,98079.0,0.01396335]
[1733912741571,0.0867214,98080.0,98079.0,0.004]
[1733912741777,0.0867214,98080.0,98079.0,0.01396335]
[1733912741991,0.0867214,98080.0,98076.0,0.15]
[1733912742190,0.08108699,98080.0,98079.0,0.001]
[1733912742393,0.08670632,98080.0,98079.0,0.001]
[1733912742603,0.08670632,98080.0,98079.0,0.00996335]
[1733912742804,0.08670632,98080.0,98079.0,0.001]
[1733912743214,0.08670632,98080.0,98079.0,0.01096335]
[1733912745269,0.08670345,98080.0,98079.0,0.01096335]
[1733912747212,0.08670345,98080.0,98079.0,0.00996335]
[1733912747595,0.08670345,98080.0,98076.0,0.353923]
[1733912747748,0.08108699,98080.0,98079.0,0.00997614]
[1733912747926,0.08670243,98080.0,98076.0,0.353923]
[1733912748141,0.08108699,98080.0,98079.0,0.00997614]
[1733912748329,0.08670198,98080.0,98076.0,0.353923]
[1733912748546,0.08108699,98080.0,98079.0,0.00997614]
[1733912748775,0.08670198,98080.0,98076.0,0.353923]
[1733912748990,0.08108699,98080.0,98079.0,0.00997614]
[1733912749192,0.08670164,98080.0,98073.0,0.09224145]
[1733912749396,0.08108699,98080.0,98079.0,0.00997614]
[1733912749599,0.08670164,98080.0,98073.0,0.24224145]
[1733912749813,0.08108699,98080.0,98073.0,0.24224145]
[1733912750035,0.08108699,98080.0,98073.0,0.09224145]
[1733912750235,0.08108699,98080.0,98074.0,0.00998076]
[1733912750679,0.0464,98079.0,98074.0,0.00998076]
[1733912750999,0.0464,98079.0,98072.0,0.20393]
[1733912751207,0.0464,98079.0,98075.0,0.00997984]
[1733912751422,0.0464,98079.0,98073.0,0.09224145]
[1733912751629,0.0464,98079.0,98071.0,0.01001731]
[1733912751630,0.0464,98079.0,98076.0,0.00997891]
[1733912751837,0.0464,98079.0,98071.0,0.01001731]
[1733912751838,0.0464,98079.0,98073.0,0.09224145]
[1733912752050,0.0464,98079.0,98077.0,0.00997799]
[1733912752303,0.0464,98079.0,98071.0,0.203933]
[1733912752509,0.0464,98079.0,98078.0,0.00997706]
[1733912752720,0.0474,98079.0,98073.0,0.09224145]
[1733912752935,0.0474,98079.0,98078.0,0.00997706]
[1733912753134,0.0474,98079.0,98073.0,0.24224145]
[1733912753135,0.0464,98079.0,98073.0,0.24224145]
[1733912753359,0.0464,98079.0,98078.0,0.00997706]
[1733912753609,0.0464,98079.0,98073.0,0.09224145]
[1733912753826,0.0464,98079.0,98078.0,0.00997706]
[1733912754044,0.0464,98079.0,98073.0,0.09224145]
[1733912754273,0.08108699,98080.0,98073.0,0.09224145]
[1733912754274,0.00018699,98080.0,98079.0,0.09224145]
[1733912754496,0.00018699,98080.0,98079.0,0.24326089]
[1733912754709,0.00018699,98080.0,98079.0,0.25222551]
[1733912756214,0.00018699,98080.0,98079.0,0.25522551]
[1733912756629,0.00018699,98080.0,98079.0,0.26122551]
[1733912759053,0.00018699,98080.0,98079.0,0.41122551]
[1733912761821,0.00018699,98080.0,98079.0,0.40222551]
[1733912762052,0.00018699,98080.0,98079.0,0.40522551]
[1733912762264,0.00018699,98080.0,98079.0,0.41122551]
[1733912764259,0.00018699,98080.0,98079.0,0.40822551]
[1733912764475,0.00018699,98080.0,98079.0,0.41022551]
[1733912764927,0.00018699,98080.0,98079.0,0.40222551]
[1733912765141,0.00018699,98080.0,98079.0,0.40722551]
[1733912765363,0.00018699,98080.0,98079.0,0.41022551]
[1733912765583,0.00018699,98080.0,98079.0,0.40522551]
[1733912765795,0.00018699,98080.0,98079.0,0.41122551]
[1733912775415,0.00018699,98080.0,98079.0,0.48902551]
[1733912775626,0.00018699,98080.0,98079.0,0.59435075]
[1733912776736,0.00018699,98080.0,98079.0,0.68557967]
[1733912776951,0.00018699,98080.0,98079.0,0.73387967]
[1733912778687,0.00018699,98080.0,98079.0,0.64265075]
[1733912778908,0.00018699,98080.0,98079.0,0.97953712]
[1733912780278,0.00018699,98080.0,98079.0,0.97956167]
[1733912781888,0.00018699,98080.0,98079.0,0.85346167]
[1733912784411,0.00018699,98080.0,98079.0,0.41122551]
[1733912784615,0.00018699,98080.0,98079.0,0.50249943]
[1733912784793,0.00018699,98080.0,98079.0,0.41122551]
[1733912785990,0.00018699,98080.0,98079.0,0.5481364]
[1733912787282,0.00018699,98080.0,98079.0,0.31898406]
[1733912787718,0.08248699,98080.0,98079.0,0.16898406]
[1733912788128,0.08248699,98080.0,98079.0,0.16298406]
[1733912788330,0.08248699,98080.0,98079.0,0.16798406]
[1733912788538,0.08248699,98080.0,98079.0,0.16298406]
[1733912788967,0.08248699,98080.0,98079.0,0.01698406]
[1733912789169,0.08811767,98080.0,98079.0,0.01698406]